Workbook

Sheet EAEPE_CA_DEP
B2: Universidad Pedagógica Nacional del Estado de Chihuahua
B3: Estado Analítico del Ejercicio del Presupuesto de Egresos
B4: Clasificación Administrativa
B5: Del 01 octubre al 31 de diciembre del 2022
B6: Concepto | C6: Egresos | H6: Subejercicio
C7: Aprobado | D7: Ampliaciones/ (Reducciones) | E7: Modificado | F7: Devengado | G7: Pagado
C8: 1 | D8: 2 | E8: 3 = (1+2) | F8: 4 | G8: 5 | H8: 6 = ( 3 - 4)
B10: SECRETARÍA ADMINISTRATIVA | C10: 32882552.94 | D10: -6810131 | E10: =+C10+D10 -> 26072421.94 | F10: 26003111.89 | G10: 26003111.89 | H10: =E10-F10 -> 69310.05
B11: SECRETARÍA ACADEMICA | C11: 13113087.99 | D11: -1796387.19 | E11: =+C11+D11 -> 11316700.8 | F11: 11316479.4 | G11: 11316479.4 | H11: 6052935.9
B12: CAMARGO | C12: 7241027.18 | D12: 1675799.77 | E12: 8916826.95 | F12: 8906210.32 | G12: 8906210.32 | H12: =E12-F12 -> 10616.63
B13: CHIHUAHUA | C13: 31499956.83 | D13: 9142341.47 | E13: 40642298.3 | F13: 40616379.03 | G13: 40616379.03 | H13: =E13-F13 -> 25919.27
B14: CREEL | C14: 7344183.07 | D14: 4523432.25 | E14: 11867615.32 | F14: 11859737.7 | G14: 11859737.7 | H14: =E14-F14 -> 7877.62
B15: CUAUHTÉMOC | C15: 6352808.2 | D15: 2143429.2 | E15: 8496237.4 | F15: 8492172.29 | G15: 8492172.29 | H15: =E15-F15 -> 4065.11
B16: DELICIAS | C16: 5431792.07 | D16: 4007170.79 | E16: 9438962.86 | F16: 9434871.75 | G16: 9434871.75 | H16: =E16-F16 -> 4091.11
B17: GUACHOCHI | C17: 8471859.92 | D17: 2457745.97 | E17: 10929605.89 | F17: 10923534.87 | G17: 10923534.87 | H17: =E17-F17 -> 6071.02
B18: GUADALUPE Y CALVO | C18: 3137221.04 | D18: 612871.79 | E18: 3750092.83 | F18: 3732506.87 | G18: 3732506.87 | H18: 17585.96
B19: JUAREZ | C19: 33578523.94 | D19: 12800045.39 | E19: 46378569.33 | F19: 46325888.75 | G19: 46325888.75 | H19: 52680.58
B20: MADERA | C20: 3484831.49 | D20: 97764.12 | E20: 3582595.61 | F20: 3510995.62 | G20: 3510995.62 | H20: 71599.99
B21: NUEVO CASAS GRANDES | C21: 7775828.7 | D21: 3795214.92 | E21: 11571043.62 | F21: 11532692.08 | G21: 11532692.08 | H21: 38351.54
B22: PARRAL | C22: 22644661.65 | D22: 5883496.97 | E22: 28528158.62 | F22: 28501231.55 | G22: 28501231.55 | H22: 26927.07
B23: CENTRO DE ESTUDIOS Y EDUCACIÓN VIRTUAL | C23: 4315140.45 | D23: 625792.77 | E23: 4940933.22 | F23: 4882964.85 | G23: 4882964.85 | H23: 57968.37
B24: CONOCER | C24: 2226120.82 | D24: -711996.33 | E24: 1514124.49 | F24: 1503402.76 | G24: 1503402.76 | H24: 267352.51
B25: Total del Gasto | C25: =SUM(C9:C24) -> 189499596.3 | D25: =SUM(D9:D24) -> 38446590.89 | E25: =SUM(C25,D25) -> 227946187.2 | F25: =SUM(F9:F24) -> 227542179.7 | G25: =SUM(G9:G24) -> 227542179.7 | H25: =E25-F25 -> 404007.45
C30: DR. PEDRO RUBIO MOLINA | F30: LAE FRANCISCO PADILLA ANGUIANO
C31: RECTOR | F31: SECRETARIO ADMINISTRATIVO
